[Event "First GM Mix Bassano 2021"]
[Site "Bassano del Grappa"]
[Date "2021.03.17"]
[Round "2.3"]
[White "Gregoric, Andraz"]
[Black "Grimaldi, Angela Flavia"]
[Result "1-0"]
[ECO "B06"]
[WhiteElo "2114"]
[BlackElo "2067"]
[Annotator "NA"]
[PlyCount "93"]
[EventDate "2021.03.17"]
[EventType "swiss"]
[EventCountry "ITA"]
[SourceTitle "playchess.com"]
[Source "ChessBase"]
[SourceQuality "1"]
[TimeControl "5400+30"]

1. e4 {[%emt 0:00:00]} c5 {[%emt 0:04:43]} 2. Nf3 {[%emt 0:00:00]} g6 {[%emt 0:00:16]} 3. c3 {[%emt 0:00:00]} d5 {[%emt 0:00:09]} 4. exd5 {[%emt 0:00:00]} Qxd5 {[%emt 0:00:06]} 5. Na3 {[%emt 0:01:09]} Bg7 {[%emt 0:01:07]} 6. d4 {[%emt 0:00:25]} cxd4 {[%emt 0:00:52]} 7. Bc4 {[%emt 0:00:20]} Qe4+ {[%emt 0:00:17]} 8. Be3 {[%emt 0:00:27]} Nh6 {[%emt 0:00:15]} 9. Nb5 {[%emt 0:00:28]} O-O {[%emt 0:01:28]} 10. cxd4 {[%emt 0:00:16]} Nc6 {[%emt 0:03:50]} 11. Nc3 {[%emt 0:00:21]} Qg4 {[%emt 0:04:23]} 12. h3 {[%emt 0:00:25]} Qh5 {[%emt 0:11:05]} 13. Qd2 {[%emt 0:02:38]} Ng4 {[%emt 0:13:54]} 14. Bg5 {[%emt 0:00:35]} h6 {[%emt 0:18:24]} 15. Bh4 {[%emt 0:00:08]} Nf6 {[%emt 0:03:10]} 16. Qe3 {[%emt 0:00:23]} Nb4 {[%emt 0:09:53]} 17. Qxe7 {[%emt 0:16:14]} Nd3+ {[%emt 0:15:42]} 18. Bxd3 {[%emt 0:07:24]} Re8 {[%emt 0:01:02]} 19. Bxf6 {[%emt 0:00:12]} Rxe7+ {[%emt 0:00:02]} 20. Bxe7 {[%emt 0:00:07]} Bxd4 {[%emt 0:02:55]} 21. Nxd4 {[%emt 0:01:22]} Qe5+ {[%emt 0:00:05]} 22. Be2 {[%emt 0:03:34]} Qxe7 {[%emt 0:00:16]} 23. O-O-O {[%emt 0:02:00]} Qg5+ {[%emt 0:00:11]} 24. Kb1 {[%emt 0:01:07]} Bf5+ {[%emt 0:02:12]} 25. Nxf5 {[%emt 0:00:29]} Qxf5+ {[%emt 0:00:04]} 26. Ka1 {[%emt 0:00:06]} Re8 {[%emt 0:00:38]} 27. Bc4 {[%emt 0:03:20]} a6 {[%emt 0:02:07]} 28. Bb3 {[%emt 0:01:22]} b5 {[%emt 0:01:28]} 29. f3 {[%emt 0:01:11]} a5 {[%emt 0:01:19]} 30. Ne4 {[%emt 0:05:23]} Re7 {[%emt 0:00:57]} 31. Rd5 {[%emt 0:02:05]} Re5 {[%emt 0:01:36]} 32. Rd8+ {[%emt 0:04:54]} Kg7 {[%emt 0:00:12]} 33. Nd6 {[%emt 0:03:05]} Qg5 {[%emt 0:01:05]} 34. Rd7 {[%emt 0:02:18]} Re7 {[%emt 0:00:21]} 35. Rxe7 {[%emt 0:00:33]} Qxe7 {[%emt 0:00:04]} 36. Nxb5 {[%emt 0:01:39]} Qg5 {[%emt 0:00:19]} 37. a4 {[%emt 0:05:42]} Qxg2 {[%emt 0:00:04]} 38. Rc1 {[%emt 0:00:27]} Qxf3 {[%emt 0:00:12]} 39. Rc3 {[%emt 0:02:08]} Qf1+ {[%emt 0:00:04]} 40. Ka2 {[%emt 0:00:04]} f5 {[%emt 0:00:17]} 41. h4 {[%emt 0:02:20]} Qf2 {[%emt 0:01:30]} 42. Rc7+ {[%emt 0:00:15]} Kf6 {[%emt 0:00:14]} 43. Rc6+ {[%emt 0:01:39]} Ke5 {[%emt 0:01:31]} 44. Rxg6 {[%emt 0:00:47]} Qxh4 {[%emt 0:00:04]} 45. Nd6 {[%emt 0:00:46]} f4 {[%emt 0:00:44]} 46. Re6+ {[%emt 0:00:29]} Kd4 {[%emt 0:00:13]} 47. Nf5+ {[%emt 0:32:53]} 1-0

[Event "First GM Mix Bassano 2021"]
[Site "Bassano del Grappa"]
[Date "2021.03.17"]
[Round "2.5"]
[White "Marasa, Giuseppe"]
[Black "Baliuniene, Margarita"]
[Result "1-0"]
[ECO "D36"]
[WhiteElo "1952"]
[BlackElo "1886"]
[Annotator "NA"]
[PlyCount "97"]
[EventDate "2021.03.17"]
[EventType "swiss"]
[EventCountry "ITA"]
[SourceTitle "playchess.com"]
[Source "ChessBase"]
[SourceQuality "1"]
[TimeControl "5400+30"]

1. d4 {[%emt 0:04:53]} d5 {[%emt 0:00:00]} 2. c4 {[%emt 0:00:03]} e6 {[%emt 0:00:00]} 3. Nc3 {[%emt 0:00:05]} Nf6 {[%emt 0:00:00]} 4. cxd5 {[%emt 0:00:06]} exd5 {[%emt 0:00:02]} 5. Bg5 {[%emt 0:00:07]} c6 {[%emt 0:00:13]} 6. e3 {[%emt 0:00:45]} Be7 {[%emt 0:00:14]} 7. Bd3 {[%emt 0:00:05]} O-O {[%emt 0:00:53]} 8. h3 {[%emt 0:01:18]} Ne4 {[%emt 0:03:13]} 9. Bxe7 {[%emt 0:02:57]} Qxe7 {[%emt 0:00:02]} 10. Qc2 {[%emt 0:01:20]} f5 {[%emt 0:00:26]} 11. Nf3 {[%emt 0:09:46]} Nd7 {[%emt 0:05:15]} 12. O-O-O {[%emt 0:12:16]} Ndf6 {[%emt 0:03:39]} 13. Ne5 {[%emt 0:04:44]} c5 {[%emt 0:08:05]} 14. f3 {[%emt 0:08:54]} cxd4 {[%emt 0:02:22]} 15. exd4 {[%emt 0:01:16]} Nxc3 {[%emt 0:01:18]} 16. Qxc3 {[%emt 0:00:37]} Be6 {[%emt 0:03:03]} 17. Kb1 {[%emt 0:01:43]} Rac8 {[%emt 0:04:15]} 18. Qd2 {[%emt 0:01:03]} Qc7 {[%emt 0:04:41]} 19. g4 {[%emt 0:07:10]} Nd7 {[%emt 0:08:16]} 20. Rhe1 {[%emt 0:07:35]} fxg4 {[%emt 0:04:08]} 21. hxg4 {[%emt 0:02:48]} Rce8 {[%emt 0:01:34]} 22. Rc1 {[%emt 0:09:57]} Qd6 {[%emt 0:01:30]} 23. Qh2 {[%emt 0:00:41]} h6 {[%emt 0:09:22]} 24. g5 {[%emt 0:02:42]} Bf5 {[%emt 0:00:43]} 25. Bxf5 {[%emt 0:01:26]} Rxf5 {[%emt 0:00:02]} 26. Qh5 {[%emt 0:07:35]} Ref8 {[%emt 0:02:13]} 27. f4 {[%emt 0:03:23]} Nxe5 {[%emt 0:20:31]} 28. dxe5 {[%emt 0:01:46]} Qe6 {[%emt 0:04:12]} 29. Ka1 {[%emt 0:03:08]} Rxf4 {[%emt 0:02:57]} 30. gxh6 {[%emt 0:00:26]} Qxh6 {[%emt 0:01:02]} 31. Qd1 {[%emt 0:02:47]} Qe6 {[%emt 0:01:56]} 32. Qb3 {[%emt 0:00:24]} b6 {[%emt 0:00:40]} 33. Rcd1 {[%emt 0:00:26]} Rd8 {[%emt 0:00:55]} 34. Qg3 {[%emt 0:01:17]} Rf5 {[%emt 0:01:45]} 35. Qh3 {[%emt 0:01:21]} Rdf8 {[%emt 0:00:49]} 36. Rh1 {[%emt 0:00:37]} Qxe5 {[%emt 0:00:27]} 37. Qh7+ {[%emt 0:00:26]} Kf7 {[%emt 0:00:04]} 38. Rhe1 {[%emt 0:00:31]} Qf6 {[%emt 0:00:59]} 39. Rc1 {[%emt 0:00:23]} Qg5 {[%emt 0:05:20]} 40. Rc7+ {[%emt 0:00:36]} Kf6 {[%emt 0:00:02]} 41. Rc6+ {[%emt 0:00:15]} Kf7 {[%emt 0:00:14]} 42. Rc7+ {[%emt 0:00:35]} Kf6 {[%emt 0:00:01]} 43. Rc6+ {[%emt 0:00:01]} Kf7 {[%emt 0:00:15]} 44. Rce6 {[%emt 0:01:10]} Rf2 {[%emt 0:01:43]} 45. a3 {[%emt 0:00:21]} d4 {[%emt 0:01:49]} 46. Qd3 {[%emt 0:00:36]} Qc5 {[%emt 0:00:43]} 47. Qb3 {[%emt 0:00:32]} Rc8 {[%emt 0:00:36]} 48. Re7+ {[%emt 0:00:23]} Kg6 {[%emt 0:00:14]} 49. Qg3+ {[%emt 0:00:18]} 1-0

[Event "First GM Mix Bassano 2021"]
[Site "Bassano del Grappa"]
[Date "2021.03.18"]
[Round "3.5"]
[White "Markoja, Boris"]
[Black "Baenziger, Fabian"]
[Result "1/2-1/2"]
[ECO "D23"]
[WhiteElo "2439"]
[BlackElo "2409"]
[Annotator "RC"]
[PlyCount "46"]
[EventDate "2021.03.17"]
[EventType "swiss"]
[EventCountry "ITA"]
[SourceTitle "playchess.com"]
[Source "ChessBase"]
[SourceQuality "1"]
[TimeControl "5400+30"]

1. c4 {[%emt 0:00:00]} c6 {[%emt 0:00:23]} 2. d4 {[%emt 0:00:13]} d5 {[%emt 0:00:07]} 3. Nf3 {[%emt 0:00:09]} Nf6 {[%emt 0:00:05]} 4. Qb3 {[%emt 0:00:13]} dxc4 {[%emt 0:00:08]} 5. Qxc4 {[%emt 0:00:05]} Bf5 {[%emt 0:00:15]} 6. g3 {[%emt 0:00:19]} e6 {[%emt 0:00:12]} 7. Bg2 {[%emt 0:00:25]} Be7 {[%emt 0:00:07]} 8. O-O {[%emt 0:00:38]} O-O {[%emt 0:00:15]} 9. Qb3 {[%emt 0:03:28]} Qb6 {[%emt 0:00:25]} 10. Nbd2 {[%emt 0:00:12]} Rd8 {[%emt 0:02:55]} 11. Nc4 {[%emt 0:00:44]} Qa6 {[%emt 0:00:11]} 12. Bd2 {[%emt 0:07:33]} Nbd7 {[%emt 0:01:47]} 13. Rfc1 {[%emt 0:03:35]} Be4 {[%emt 0:04:17]} 14. Bb4 {[%emt 0:05:26]} c5 {[%emt 0:03:10]} 15. dxc5 {[%emt 0:01:57]} Nxc5 {[%emt 0:10:06]} 16. Qa3 {[%emt 0:00:58]} Qxa3 {[%emt 0:02:02]} 17. Bxa3 {[%emt 0:00:22]} Rac8 {[%emt 0:02:43]} 18. Nfe5 {[%emt 0:03:36]} Bxg2 {[%emt 0:08:49]} 19. Kxg2 {[%emt 0:00:08]} Nfd7 {[%emt 0:01:18]} 20. Rc2 {[%emt 0:21:28]} b5 {[%emt 0:08:31]} 21. Nxd7 {[%emt 0:02:37]} Rxd7 {[%emt 0:01:19]} 22. Na5 {[%emt 0:10:27]} Rdc7 {[%emt 0:00:54]} 23. Rac1 {[%emt 0:01:53]} Kf8 {[%emt 0:03:16]} 1/2-1/2

[Event "First GM Mix Bassano 2021"]
[Site "Bassano del Grappa"]
[Date "2021.03.18"]
[Round "4.2"]
[White "Kuhn, Clement"]
[Black "Martin Duque, Jesus"]
[Result "0-1"]
[ECO "B49"]
[WhiteElo "2278"]
[BlackElo "2454"]
[Annotator "RC"]
[PlyCount "90"]
[EventDate "2021.03.17"]
[EventType "swiss"]
[EventCountry "ITA"]
[SourceTitle "playchess.com"]
[Source "ChessBase"]
[SourceQuality "1"]
[TimeControl "5400+30"]

1. e4 {[%emt 0:00:00]} c5 {[%emt 0:01:28]} 2. Nf3 {[%emt 0:00:00]} e6 {[%emt 0:00:05]} 3. d4 {[%emt 0:00:00]} cxd4 {[%emt 0:00:06]} 4. Nxd4 {[%emt 0:00:00]} Nc6 {[%emt 0:00:02]} 5. Nc3 {[%emt 0:00:00]} Qc7 {[%emt 0:00:04]} 6. Be2 {[%emt 0:00:00]} a6 {[%emt 0:00:25]} 7. O-O {[%emt 0:00:06]} Nf6 {[%emt 0:00:06]} 8. Be3 {[%emt 0:00:08]} Bb4 {[%emt 0:00:53]} 9. Na4 {[%emt 0:00:05]} Be7 {[%emt 0:01:45]} 10. Nxc6 {[%emt 0:02:08]} bxc6 {[%emt 0:00:02]} 11. Qd4 {[%emt 0:03:21]} Rb8 {[%emt 0:10:13]} 12. Nc5 {[%emt 0:08:24]} e5 {[%emt 0:05:15]} 13. Qd3 {[%emt 0:04:58]} a5 {[%emt 0:02:44]} 14. Nb3 {[%emt 0:08:04]} d5 {[%emt 0:04:35]} 15. Bf3 {[%emt 0:10:11]} a4 {[%emt 0:03:02]} 16. Nd2 {[%emt 0:01:35]} Rxb2 {[%emt 0:09:01]} 17. Rfb1 {[%emt 0:06:53]} Rxb1+ {[%emt 0:02:02]} 18. Rxb1 {[%emt 0:00:11]} d4 {[%emt 0:05:11]} 19. Bg5 {[%emt 0:00:48]} O-O {[%emt 0:00:12]} 20. Bxf6 {[%emt 0:08:08]} Bxf6 {[%emt 0:02:05]} 21. Qa3 {[%emt 0:00:17]} Ba6 {[%emt 0:01:05]} 22. Qxa4 {[%emt 0:01:33]} Bb5 {[%emt 0:00:29]} 23. Qb3 {[%emt 0:01:18]} Ra8 {[%emt 0:00:06]} 24. Nc4 {[%emt 0:01:14]} Be7 {[%emt 0:04:39]} 25. Be2 {[%emt 0:02:12]} Ra4 {[%emt 0:02:07]} 26. a3 {[%emt 0:03:01]} Bf8 {[%emt 0:04:17]} 27. Bd3 {[%emt 0:02:23]} Qe7 {[%emt 0:02:08]} 28. f4 {[%emt 0:05:54]} exf4 {[%emt 0:05:34]} 29. e5 {[%emt 0:31:38]} Ra7 {[%emt 0:04:23]} 30. Rf1 {[%emt 0:00:00]} Qg5 {[%emt 0:10:42]} 31. h3 {[%emt 0:00:00]} g6 {[%emt 0:01:41]} 32. Kh1 {[%emt 0:00:00]} Kg7 {[%emt 0:04:29]} 33. a4 {[%emt 0:00:00]} Rxa4 {[%emt 0:02:35]} 34. Nd6 {[%emt 0:00:00]} Bxd6 {[%emt 0:00:21]} 35. Bxb5 {[%emt 0:00:00]} Qxe5 {[%emt 0:03:39]} 36. Qxa4 {[%emt 0:00:00]} f3 {[%emt 0:00:35]} 37. g3 {[%emt 0:00:00]} cxb5 {[%emt 0:00:13]} 38. Qa1 {[%emt 0:00:00]} Qxg3 {[%emt 0:00:09]} 39. Qxd4+ {[%emt 0:00:00]} Be5 {[%emt 0:00:03]} 40. Qf2 {[%emt 0:00:00]} Qxh3+ {[%emt 0:00:04]} 41. Kg1 {[%emt 0:00:00]} Qg4+ {[%emt 0:00:08]} 42. Kh1 {[%emt 0:00:00]} Bg3 {[%emt 0:01:42]} 43. Qd2 {[%emt 0:00:00]} f2 {[%emt 0:01:23]} 44. Qc3+ {[%emt 0:00:00]} f6 {[%emt 0:00:16]} 45. Rxf2 {[%emt 0:00:00]} Qh3+ {[%emt 0:00:39]} 0-1

[Event "First GM Mix Bassano 2021"]
[Site "Bassano del Grappa"]
[Date "2021.03.18"]
[Round "4.3"]
[White "Sonis, Francesco"]
[Black "Niemann, Hans Moke"]
[Result "0-1"]
[ECO "D43"]
[WhiteElo "2477"]
[BlackElo "2526"]
[Annotator "ChessBase"]
[PlyCount "78"]
[EventDate "2021.03.17"]
[EventType "swiss"]
[EventCountry "ITA"]
[SourceTitle "playchess.com"]
[Source "ChessBase"]
[SourceQuality "1"]
[TimeControl "5400+30"]

1. d4 {[%emt 0:01:55]} Nf6 {[%emt 0:00:00]} 2. c4 {[%emt 0:00:15]} e6 {[%emt 0:00:00]} 3. Nf3 {[%emt 0:02:47]} d5 {[%emt 0:00:27]} 4. Nc3 {[%emt 0:00:12]} c6 {[%emt 0:00:33]} 5. Bg5 {[%emt 0:00:45]} h6 {[%emt 0:00:09]} 6. Bxf6 {[%emt 0:02:18]} Qxf6 {[%emt 0:00:11]} 7. a3 {[%emt 0:01:17]} dxc4 {[%emt 0:01:16]} 8. Ne5 {[%emt 0:02:54]} b5 {[%emt 0:05:27]} 9. g3 {[%emt 0:00:32]} Bb7 {[%emt 0:03:01]} 10. Bg2 {[%emt 0:00:19]} a6 {[%emt 0:00:11]} 11. a4 {[%emt 0:05:56]} Bd6 {[%emt 0:03:59]} 12. axb5 {[%emt 0:05:51]} axb5 {[%emt 0:00:14]} 13. Rxa8 {[%emt 0:00:04]} Bxa8 {[%emt 0:00:13]} 14. Qa1 {[%emt 0:00:32]} Bb7 {[%emt 0:00:05]} 15. Qa7 {[%emt 0:00:26]} Qe7 {[%emt 0:00:11]} 16. O-O {[%emt 0:07:52]} O-O {[%emt 0:01:31]} 17. Ne4 {[%emt 0:05:00]} Bb4 {[%emt 0:08:58]} 18. Ra1 {[%emt 0:06:09]} Qc7 {[%emt 0:00:40]} 19. b3 {[%emt 0:10:38]} Nd7 {[%emt 0:05:04]} 20. Nxd7 {[%emt 0:19:13]} Qxd7 {[%emt 0:04:17]} 21. Nc5 {[%emt 0:00:28]} Bxc5 {[%emt 0:00:23]} 22. Qxc5 {[%emt 0:00:05]} cxb3 {[%emt 0:00:08]} 23. Rb1 {[%emt 0:00:03]} Ra8 {[%emt 0:00:14]} 24. Bf3 {[%emt 0:00:36]} Ra4 {[%emt 0:01:07]} 25. e3 {[%emt 0:00:17]} Rc4 {[%emt 0:00:43]} 26. Qa7 {[%emt 0:00:11]} e5 {[%emt 0:01:03]} 27. Qb8+ {[%emt 0:00:10]} Bc8 {[%emt 0:01:12]} 28. Be2 {[%emt 0:03:48]} exd4 {[%emt 0:02:01]} 29. exd4 {[%emt 0:01:10]} Qf5 {[%emt 0:04:39]} 30. Rxb3 {[%emt 0:00:22]} Rc1+ {[%emt 0:00:14]} 31. Kg2 {[%emt 0:00:03]} Qh3+ {[%emt 0:09:17]} 32. Kf3 {[%emt 0:00:04]} Rg1 {[%emt 0:01:05]} 33. Bd3 {[%emt 0:05:49]} Qg4+ {[%emt 0:05:00]} 34. Ke3 {[%emt 0:00:08]} Qe6+ {[%emt 0:00:04]} 35. Kf3 {[%emt 0:00:51]} Re1 {[%emt 0:00:23]} 36. Kg2 {[%emt 0:02:35]} Qh3+ {[%emt 0:00:07]} 37. Kf3 {[%emt 0:00:06]} Re8 {[%emt 0:00:08]} 38. Qf4 {[%emt 0:00:39]} Qh5+ {[%emt 0:00:05]} 39. Kg2 {[%emt 0:00:03]} Bh3+ {[%emt 0:00:10]} 0-1

[Event "First GM Mix Bassano 2021"]
[Site "Bassano del Grappa"]
[Date "2021.03.19"]
[Round "5.1"]
[White "Baliuniene, Margarita"]
[Black "Zlatanovic, Marcus"]
[Result "1/2-1/2"]
[ECO "D78"]
[WhiteElo "1886"]
[BlackElo "1687"]
[Annotator "NA"]
[PlyCount "118"]
[EventDate "2021.03.17"]
[EventType "swiss"]
[EventCountry "ITA"]
[SourceTitle "playchess.com"]
[Source "ChessBase"]
[SourceQuality "1"]
[TimeControl "5400+30"]

1. Nf3 {[%emt 1:30:30]} Nf6 {[%emt 1:30:30]} 2. g3 {[%emt 0:00:00]} g6 {[%emt 0:00:00]} 3. Bg2 {[%emt 0:00:00]} Bg7 {[%emt 0:00:00]} 4. d4 {[%emt 0:00:00]} c6 {[%emt 0:00:00]} 5. c4 {[%emt 0:00:00]} d5 {[%emt 0:00:00]} 6. Nbd2 {[%emt 0:00:00]} O-O {[%emt 0:00:00]} 7. O-O {[%emt 0:00:00]} Nbd7 {[%emt 0:00:00]} 8. cxd5 {[%emt 0:03:30]} cxd5 {[%emt 0:03:30]} 9. Nb3 {[%emt 0:00:30]} Nb6 {[%emt 0:00:30]} 10. Nc5 {[%emt 0:00:30]} Nfd7 {[%emt 0:00:30]} 11. Nd3 {[%emt 0:00:30]} Re8 {[%emt 0:00:30]} 12. a4 {[%emt 0:00:30]} e5 {[%emt 0:00:30]} 13. dxe5 {[%emt 0:00:30]} Nxe5 {[%emt 0:00:30]} 14. Nfxe5 {[%emt 0:00:30]} Bxe5 {[%emt 0:00:30]} 15. Nxe5 {[%emt 0:00:30]} Rxe5 {[%emt 0:00:30]} 16. Bf4 {[%emt 0:00:30]} Re8 {[%emt 0:00:30]} 17. b3 {[%emt 0:00:30]} g5 {[%emt 0:00:30]} 18. Be3 {[%emt 0:00:30]} Be6 {[%emt 0:00:30]} 19. Qd4 {[%emt 0:00:30]} Qe7 {[%emt 0:00:30]} 20. a5 {[%emt 0:00:30]} Nc8 {[%emt 0:00:30]} 21. Rad1 {[%emt 0:00:30]} Nd6 {[%emt 0:00:30]} 22. Qd2 {[%emt 0:00:30]} Ne4 {[%emt 0:00:30]} 23. Qb2 {[%emt 0:00:30]} h6 {[%emt 0:00:30]} 24. Bd4 {[%emt 0:00:30]} f5 {[%emt 0:00:30]} 25. f3 {[%emt 0:00:30]} Nd6 {[%emt 0:00:30]} 26. Bc5 {[%emt 0:00:30]} Qc7 {[%emt 0:00:30]} 27. Rc1 {[%emt 0:00:30]} Rac8 {[%emt 0:00:30]} 28. b4 {[%emt 0:00:30]} Nc4 {[%emt 0:00:30]} 29. Qf6 {[%emt 0:00:00]} Qg7 30. Qxg7+ {[%emt 0:01:00]} Kxg7 {[%emt 0:01:00]} 31. Bxa7 {[%emt 0:00:30]} Nd2 {[%emt 0:00:00]} 32. Rfd1 {[%emt 0:00:30]} Rc4 {[%emt 0:01:00]} 33. Rxc4 {[%emt 0:00:30]} Nxc4 {[%emt 0:00:30]} 34. f4 {[%emt 0:00:30]} Kg6 {[%emt 0:00:30]} 35. Bxd5 {[%emt 0:00:30]} Bxd5 {[%emt 0:00:30]} 36. Rxd5 {[%emt 0:00:30]} Rxe2 {[%emt 0:00:30]} 37. Rd7 {[%emt 0:00:30]} Kh5 {[%emt 0:00:30]} 38. fxg5 {[%emt 0:00:30]} hxg5 {[%emt 0:00:30]} 39. Bf2 {[%emt 0:00:30]} Rb2 {[%emt 0:00:30]} 40. Rxb7 {[%emt 0:00:30]} Nxa5 {[%emt 0:00:30]} 41. Rb5 {[%emt 0:00:30]} Nc6 {[%emt 0:00:30]} 42. Bc5 {[%emt 0:00:30]} Kg4 {[%emt 0:00:30]} 43. Bd6 {[%emt 0:00:30]} Nd4 {[%emt 0:00:30]} 44. Rd5 {[%emt 0:00:30]} Nf3+ {[%emt 0:00:30]} 45. Kf1 {[%emt 0:00:30]} Nxh2+ {[%emt 0:00:30]} 46. Ke1 {[%emt 0:00:30]} Nf3+ {[%emt 0:00:30]} 47. Kd1 {[%emt 0:00:30]} Nh2 {[%emt 0:00:30]} 48. b5 {[%emt 0:00:30]} Nf1 {[%emt 0:00:30]} 49. Kc1 {[%emt 0:00:30]} Rb3 {[%emt 0:00:30]} 50. Kc2 {[%emt 0:00:30]} Ne3+ {[%emt 0:00:30]} 51. Kxb3 {[%emt 0:00:30]} Nxd5 {[%emt 0:00:30]} 52. Kc4 {[%emt 0:00:30]} Nb6+ {[%emt 0:00:30]} 53. Kc5 {[%emt 0:00:30]} Na4+ {[%emt 0:00:30]} 54. Kb4 {[%emt 0:00:30]} Nb6 {[%emt 0:00:30]} 55. Bc5 {[%emt 0:00:30]} Na8 {[%emt 0:00:30]} 56. Bf2 {[%emt 0:00:30]} Nc7 {[%emt 0:00:30]} 57. Kc5 {[%emt 0:00:30]} Nxb5 {[%emt 0:00:30]} 58. Kxb5 {[%emt 0:00:30]} Kf3 {[%emt 0:00:30]} 59. Be1 {[%emt 0:00:30]} f4 {[%emt 0:00:30]} 1/2-1/2

[Event "First GM Mix Bassano 2021"]
[Site "Bassano del Grappa"]
[Date "2021.03.19"]
[Round "5.4"]
[White "Frick, Cristopher"]
[Black "Marasa, Giuseppe"]
[Result "1/2-1/2"]
[ECO "D02"]
[WhiteElo "2051"]
[BlackElo "1952"]
[Annotator "NA"]
[PlyCount "44"]
[EventDate "2021.03.17"]
[EventType "swiss"]
[EventCountry "ITA"]
[SourceTitle "playchess.com"]
[Source "ChessBase"]
[SourceQuality "1"]
[TimeControl "5400+30"]

1. d4 {[%emt 0:00:00]} d5 {[%emt 0:04:31]} 2. Bf4 {[%emt 0:00:00]} c5 {[%emt 0:00:16]} 3. e3 {[%emt 0:00:00]} Nc6 {[%emt 0:00:04]} 4. Nf3 {[%emt 0:04:36]} Nf6 {[%emt 0:02:03]} 5. Nbd2 {[%emt 0:03:59]} cxd4 {[%emt 0:11:06]} 6. exd4 {[%emt 0:00:29]} Qb6 {[%emt 0:01:26]} 7. Nb3 {[%emt 0:01:13]} Bg4 {[%emt 0:04:33]} 8. Be2 {[%emt 0:00:59]} e6 {[%emt 0:00:55]} 9. O-O {[%emt 0:02:35]} Be7 {[%emt 0:01:20]} 10. Re1 {[%emt 0:10:26]} O-O {[%emt 0:02:55]} 11. h3 {[%emt 0:08:04]} Bh5 {[%emt 0:03:20]} 12. Ne5 {[%emt 0:06:44]} Bxe2 {[%emt 0:01:49]} 13. Rxe2 {[%emt 0:00:06]} Rad8 {[%emt 0:10:25]} 14. c3 {[%emt 0:02:08]} Rfe8 {[%emt 0:01:53]} 15. Qd3 {[%emt 0:02:22]} Ne4 {[%emt 0:06:23]} 16. Rd1 {[%emt 0:05:51]} Bd6 {[%emt 0:06:55]} 17. Nxc6 {[%emt 0:03:12]} Qxc6 {[%emt 0:01:37]} 18. Bxd6 {[%emt 0:00:43]} Qxd6 {[%emt 0:01:58]} 19. Nd2 {[%emt 0:04:11]} Nxd2 {[%emt 0:03:14]} 20. Rdxd2 {[%emt 0:00:28]} Rb8 {[%emt 0:02:38]} 21. Re5 {[%emt 0:08:14]} b5 {[%emt 0:02:38]} 22. Rde2 {[%emt 0:00:15]} b4 {[%emt 0:03:14]} 1/2-1/2

[Event "First GM Mix Bassano 2021"]
[Site "Bassano del Grappa"]
[Date "2021.03.19"]
[Round "5.5"]
[White "Checa, Nicolas"]
[Black "Basso, Pier Luigi"]
[Result "1/2-1/2"]
[ECO "D61"]
[WhiteElo "2546"]
[BlackElo "2521"]
[Annotator "RC"]
[PlyCount "44"]
[EventDate "2021.03.17"]
[EventType "swiss"]
[EventCountry "ITA"]
[SourceTitle "playchess.com"]
[Source "ChessBase"]
[SourceQuality "1"]
[TimeControl "5400+30"]

1. d4 {[%emt 0:06:16]} d5 {[%emt 0:00:29]} 2. c4 {[%emt 0:00:17]} e6 {[%emt 0:00:08]} 3. Nc3 {[%emt 0:00:09]} Be7 {[%emt 0:00:06]} 4. Nf3 {[%emt 0:00:16]} Nf6 {[%emt 0:00:04]} 5. Bg5 {[%emt 0:00:12]} Nbd7 {[%emt 0:00:07]} 6. e3 {[%emt 0:00:10]} h6 {[%emt 0:00:03]} 7. Bh4 {[%emt 0:00:11]} O-O {[%emt 0:00:08]} 8. Qc2 {[%emt 0:00:18]} c5 {[%emt 0:00:09]} 9. cxd5 {[%emt 0:00:18]} Nxd5 {[%emt 0:00:06]} 10. Bxe7 {[%emt 0:00:11]} Qxe7 {[%emt 0:00:06]} 11. Nxd5 {[%emt 0:00:15]} exd5 {[%emt 0:00:05]} 12. dxc5 {[%emt 0:01:05]} Nxc5 {[%emt 0:00:21]} 13. Be2 {[%emt 0:00:46]} Bg4 {[%emt 0:00:07]} 14. O-O {[%emt 0:00:50]} Rac8 {[%emt 0:00:30]} 15. Nd4 {[%emt 0:00:30]} Ne6 {[%emt 0:00:30]} 16. Qd2 {[%emt 0:00:30]} Qg5 {[%emt 0:00:30]} 17. Bxg4 {[%emt 0:00:30]} Qxg4 {[%emt 0:00:30]} 18. Ne2 {[%emt 0:00:30]} Rfd8 {[%emt 0:00:30]} 19. Rac1 {[%emt 0:00:30]} Rxc1 {[%emt 0:00:30]} 20. Rxc1 {[%emt 0:00:30]} d4 {[%emt 0:00:30]} 21. exd4 {[%emt 0:00:30]} Nxd4 {[%emt 0:00:30]} 22. Nxd4 {[%emt 0:00:30]} Qxd4 {[%emt 0:00:30]} 1/2-1/2

[Event "First GM Mix Bassano 2021"]
[Site "Bassano del Grappa"]
[Date "2021.03.19"]
[Round "6.3"]
[White "Baliuniene, Margarita"]
[Black "Grimaldi, Angela Flavia"]
[Result "1-0"]
[ECO "A07"]
[WhiteElo "1886"]
[BlackElo "2067"]
[Annotator "NA"]
[PlyCount "79"]
[EventDate "2021.03.17"]
[EventType "swiss"]
[EventCountry "ITA"]
[SourceTitle "playchess.com"]
[Source "ChessBase"]
[SourceQuality "1"]
[TimeControl "5400+30"]

1. Nf3 {[%emt 0:00:00]} d5 {[%emt 0:00:21]} 2. g3 {[%emt 0:00:00]} d4 {[%emt 0:00:05]} 3. Bg2 {[%emt 0:01:30]} c5 {[%emt 0:00:04]} 4. e4 {[%emt 0:01:54]} Nc6 {[%emt 0:00:27]} 5. d3 {[%emt 0:00:17]} e5 {[%emt 0:00:15]} 6. Nbd2 {[%emt 0:01:13]} g6 {[%emt 0:01:16]} 7. Nc4 {[%emt 0:00:30]} Bg7 {[%emt 0:00:07]} 8. a4 {[%emt 0:00:26]} Nge7 {[%emt 0:01:00]} 9. c3 {[%emt 0:01:05]} O-O {[%emt 0:01:47]} 10. cxd4 {[%emt 0:00:12]} cxd4 {[%emt 0:02:07]} 11. O-O {[%emt 0:00:19]} h6 {[%emt 0:02:04]} 12. b3 {[%emt 0:01:16]} Be6 {[%emt 0:00:26]} 13. Ba3 {[%emt 0:00:19]} Rb8 {[%emt 0:02:09]} 14. Nfd2 {[%emt 0:05:11]} b5 {[%emt 0:23:35]} 15. axb5 {[%emt 0:01:20]} Rxb5 {[%emt 0:00:09]} 16. Nd6 {[%emt 0:18:47]} Rb8 {[%emt 0:00:50]} 17. N2c4 {[%emt 0:02:55]} a5 {[%emt 0:10:07]} 18. f4 {[%emt 0:04:20]} Nb4 {[%emt 0:04:48]} 19. f5 {[%emt 0:03:53]} Bxc4 {[%emt 0:01:29]} 20. Nxc4 {[%emt 0:00:12]} Nec6 {[%emt 0:04:32]} 21. Bh3 {[%emt 0:07:24]} g5 {[%emt 0:15:32]} 22. Bg4 {[%emt 0:05:08]} Bf6 {[%emt 0:02:37]} 23. Bh5 {[%emt 0:00:39]} Kh7 {[%emt 0:05:58]} 24. Qd2 {[%emt 0:04:52]} Ra8 {[%emt 0:07:09]} 25. Bc1 {[%emt 0:00:30]} Qe7 {[%emt 0:00:54]} 26. Kh1 {[%emt 0:02:18]} Ra7 {[%emt 0:01:15]} 27. Ba3 {[%emt 0:02:54]} Rb8 {[%emt 0:01:22]} 28. Rfc1 {[%emt 0:01:07]} Kg7 {[%emt 0:00:39]} 29. Qe2 {[%emt 0:00:42]} Qd7 {[%emt 0:00:53]} 30. Nd2 {[%emt 0:02:06]} Rba8 {[%emt 0:01:21]} 31. Rc4 {[%emt 0:01:05]} Rb8 {[%emt 0:01:07]} 32. Rac1 {[%emt 0:02:07]} Rb6 {[%emt 0:04:06]} 33. Rc5 {[%emt 0:14:57]} a4 {[%emt 0:02:57]} 34. Nc4 {[%emt 0:00:39]} Rbb7 {[%emt 0:00:49]} 35. bxa4 {[%emt 0:00:52]} Rxa4 {[%emt 0:00:09]} 36. Qd1 {[%emt 0:00:24]} Raa7 {[%emt 0:00:51]} 37. Rb1 {[%emt 0:00:49]} Na2 {[%emt 0:02:16]} 38. Rxb7 {[%emt 0:01:17]} Qxb7 {[%emt 0:00:38]} 39. Nd6 {[%emt 0:03:18]} Qc7 {[%emt 0:00:44]} 40. Ne8+ {[%emt 0:00:09]} 1-0